[Event "*** Titled Tuesday Blitz"]
[Site "Chess.com"]
[Date "2019.03.05"]
[Round "1"]
[White "Hikaru"]
[Black "FedaMaster"]
[Result "1-0"]
[WhiteElo "3142"]
[BlackElo "2455"]
[TimeControl "180+2"]
[EndTime "13:02:31 PST"]
[Termination "Hikaru won by resignation"]

1. e4 {[%clk 0:03:00.1]} 1... d5 {[%clk 0:02:56.1]} 2. exd5 {[%clk 0:02:56.3]}
2... Qxd5 {[%clk 0:02:57.6]} 3. Nc3 {[%clk 0:02:58.2]} 3... Qd6 {[%clk
0:02:58.7]} 4. d4 {[%clk 0:02:58.8]} 4... Nf6 {[%clk 0:03:00]} 5. Nf3 {[%clk
0:02:52.5]} 5... a6 {[%clk 0:03:00.9]} 6. Bc4 {[%clk 0:02:51.8]} 6... b5 {[%clk
0:03:01.4]} 7. Bb3 {[%clk 0:02:50.9]} 7... Bb7 {[%clk 0:03:03.3]} 8. O-O {[%clk
0:02:50.8]} 8... e6 {[%clk 0:03:04.8]} 9. Re1 {[%clk 0:02:51.8]} 9... Be7 {[%clk
0:03:04.6]} 10. Ng5 {[%clk 0:02:53.2]} 10... O-O {[%clk 0:03:04.1]} 11. Nxe6
{[%clk 0:02:52.2]} 11... Re8 {[%clk 0:02:50.1]} 12. Bf4 {[%clk 0:02:51.1]} 12...
Qd7 {[%clk 0:02:40.4]} 13. Nxc7 {[%clk 0:02:49.8]} 13... Nc6 {[%clk 0:02:39.8]}
14. d5 {[%clk 0:02:49.5]} 14... Na5 {[%clk 0:02:39.2]} 15. Nxa8 {[%clk 0:02:49]}
15... Bxa8 {[%clk 0:02:38.7]} 16. d6 {[%clk 0:02:48.7]} 16... Bf8 {[%clk
0:02:33.6]} 17. Rxe8 {[%clk 0:02:50.6]} 17... Nxe8 {[%clk 0:02:34.7]} 18. Bd5
{[%clk 0:02:48.1]} 18... Nc6 {[%clk 0:02:33.2]} 19. Ne4 {[%clk 0:02:42.1]} 19...
h6 {[%clk 0:02:33.1]} 20. Bg3 {[%clk 0:02:41.4]} 20... Nxd6 {[%clk 0:02:32.7]}
21. Nxd6 {[%clk 0:02:42.4]} 21... Bxd6 {[%clk 0:02:33.5]} 22. Bxd6 {[%clk
0:02:44.3]} 22... Nd8 {[%clk 0:02:29.6]} 23. Bxa8 {[%clk 0:02:44.9]} 1-0

[Event "*** Titled Tuesday Blitz"]
[Site "Chess.com"]
[Date "2019.03.05"]
[Round "1"]
[White "tomozupan"]
[Black "fmshawnrl123"]
[Result "0-1"]
[WhiteElo "2215"]
[BlackElo "2578"]
[TimeControl "180+2"]
[EndTime "13:02:52 PST"]
[Termination "fmshawnrl123 won by resignation"]

1. d4 {[%clk 0:02:09.3]} 1... Nf6 {[%clk 0:02:59.8]} 2. Bg5 {[%clk 0:02:08.9]}
2... d5 {[%clk 0:02:57.1]} 3. Bxf6 {[%clk 0:02:06.7]} 3... exf6 {[%clk 0:02:59]}
4. e3 {[%clk 0:02:04.9]} 4... Bd6 {[%clk 0:02:59.4]} 5. c4 {[%clk 0:02:05.3]}
5... dxc4 {[%clk 0:02:59.3]} 6. Bxc4 {[%clk 0:02:05]} 6... O-O {[%clk
0:03:00.8]} 7. Nc3 {[%clk 0:02:05.1]} 7... a6 {[%clk 0:03:01.2]} 8. Nf3 {[%clk
0:02:03.8]} 8... b5 {[%clk 0:03:02.1]} 9. Bb3 {[%clk 0:02:03.6]} 9... Bb7 {[%clk
0:03:03.3]} 10. O-O {[%clk 0:02:03.2]} 10... Nd7 {[%clk 0:03:04]} 11. Rc1 {[%clk
0:02:02.8]} 11... c5 {[%clk 0:03:02.1]} 12. Bc2 {[%clk 0:01:48.9]} 12... cxd4
{[%clk 0:02:56.4]} 13. Nxd4 {[%clk 0:01:48.9]} 13... Ne5 {[%clk 0:02:48.8]} 14.
Qh5 {[%clk 0:01:40.5]} 14... g6 {[%clk 0:02:49.3]} 15. Qh4 {[%clk 0:01:39.8]}
15... f5 {[%clk 0:02:48.8]} 16. Rfd1 {[%clk 0:01:37.2]} 16... Qxh4 {[%clk
0:02:49.2]} 0-1

[Event "*** Titled Tuesday Blitz"]
[Site "Chess.com"]
[Date "2019.03.05"]
[Round "1"]
[White "GataKamsky1974"]
[Black "SARGISMV"]
[Result "1-0"]
[WhiteElo "2839"]
[BlackElo "2426"]
[TimeControl "180+2"]
[EndTime "13:03:07 PST"]
[Termination "GataKamsky1974 won by resignation"]

1. d4 {[%clk 0:03:01.9]} 1... Nf6 {[%clk 0:02:53.3]} 2. Nf3 {[%clk 0:03:03.3]}
2... g6 {[%clk 0:02:53.7]} 3. Bf4 {[%clk 0:03:04.5]} 3... Bg7 {[%clk 0:02:54.8]}
4. c3 {[%clk 0:03:05.2]} 4... O-O {[%clk 0:02:56.3]} 5. h3 {[%clk 0:03:06]} 5...
c5 {[%clk 0:02:57.2]} 6. e3 {[%clk 0:03:06.1]} 6... b6 {[%clk 0:02:58.5]} 7.
Nbd2 {[%clk 0:03:04.1]} 7... Bb7 {[%clk 0:02:59.3]} 8. Bd3 {[%clk 0:03:04.2]}
8... d6 {[%clk 0:03:00.5]} 9. O-O {[%clk 0:03:00.6]} 9... a6 {[%clk 0:03:01.6]}
10. Bh2 {[%clk 0:03:00.9]} 10... Nbd7 {[%clk 0:03:02.5]} 11. a4 {[%clk
0:03:01.3]} 11... Ra7 {[%clk 0:03:03.4]} 12. e4 {[%clk 0:03:02]} 12... Qa8
{[%clk 0:02:58]} 13. Re1 {[%clk 0:03:02.7]} 13... Rc8 {[%clk 0:02:55.7]} 14. e5
{[%clk 0:03:00.1]} 14... dxe5 {[%clk 0:02:54.5]} 15. dxe5 {[%clk 0:03:01.2]}
15... Nd5 {[%clk 0:02:53]} 16. e6 {[%clk 0:03:01.7]} 16... fxe6 {[%clk
0:02:52.5]} 17. Rxe6 {[%clk 0:03:01.9]} 17... Nf8 {[%clk 0:02:52]} 18. Re1
{[%clk 0:03:01.1]} 18... Bc6 {[%clk 0:02:42.5]} 19. Qe2 {[%clk 0:03:01.1]} 19...
Kh8 {[%clk 0:02:35.1]} 20. Nc4 {[%clk 0:03:00.9]} 20... e6 {[%clk 0:02:26]} 21.
Nce5 {[%clk 0:03:01.7]} 21... Re7 {[%clk 0:02:17.1]} 22. Nxc6 {[%clk 0:03:01.5]}
22... Qxc6 {[%clk 0:02:17.7]} 23. Bxa6 {[%clk 0:03:02.3]} 23... Rd8 {[%clk
0:02:17.2]} 24. Bb5 {[%clk 0:03:02.7]} 24... Qb7 {[%clk 0:02:17.1]} 25. Ne5
{[%clk 0:03:03.4]} 25... Nc7 {[%clk 0:02:12.1]} 26. Nc6 {[%clk 0:03:03.6]} 26...
Nxb5 {[%clk 0:02:11.2]} 27. axb5 {[%clk 0:03:04.2]} 27... Red7 {[%clk
0:02:08.2]} 28. Nxd8 {[%clk 0:03:04.1]} 28... Rxd8 {[%clk 0:02:10.1]} 29. Be5
{[%clk 0:03:03.1]} 1-0

[Event "*** Titled Tuesday Blitz"]
[Site "Chess.com"]
[Date "2019.03.05"]
[Round "1"]
[White "sergiochess83"]
[Black "witcher8"]
[Result "1-0"]
[WhiteElo "2747"]
[BlackElo "2380"]
[TimeControl "180+2"]
[EndTime "13:03:14 PST"]
[Termination "sergiochess83 won by resignation"]

1. e4 {[%clk 0:03:01.1]} 1... c6 {[%clk 0:03:00.3]} 2. d4 {[%clk 0:03:00.6]}
2... d5 {[%clk 0:03:02.2]} 3. e5 {[%clk 0:03:02.1]} 3... Bf5 {[%clk 0:03:02.2]}
4. Nf3 {[%clk 0:03:03.2]} 4... e6 {[%clk 0:03:02.4]} 5. Be2 {[%clk 0:03:04.8]}
5... Nd7 {[%clk 0:03:00.9]} 6. O-O {[%clk 0:03:04]} 6... h6 {[%clk 0:03:01.5]}
7. Nbd2 {[%clk 0:03:04.9]} 7... Ne7 {[%clk 0:03:00.2]} 8. Nb3 {[%clk 0:03:05.8]}
8... g5 {[%clk 0:03:00.6]} 9. a4 {[%clk 0:03:06]} 9... a5 {[%clk 0:03:00.8]} 10.
Bd2 {[%clk 0:03:04.8]} 10... Bg7 {[%clk 0:03:00.6]} 11. Rc1 {[%clk 0:03:01.5]}
11... O-O {[%clk 0:02:58.7]} 12. h3 {[%clk 0:02:55.5]} 12... f6 {[%clk
0:02:57.9]} 13. exf6 {[%clk 0:02:55.3]} 13... Bxf6 {[%clk 0:02:59.3]} 14. Bc3
{[%clk 0:02:53.9]} 14... Bh7 {[%clk 0:02:41]} 15. Bd3 {[%clk 0:02:53.4]} 15...
Ng6 {[%clk 0:02:40.1]} 16. Re1 {[%clk 0:02:53.1]} 16... Re8 {[%clk 0:02:35.7]}
17. Nh2 {[%clk 0:02:37.3]} 17... e5 {[%clk 0:01:54.4]} 18. Ng4 {[%clk
0:02:29.5]} 18... e4 {[%clk 0:01:51.5]} 19. Nxh6+ {[%clk 0:02:30]} 19... Kh8
{[%clk 0:01:51.9]} 20. Nf7+ {[%clk 0:02:30.7]} 1-0

[Event "*** Titled Tuesday Blitz"]
[Site "Chess.com"]
[Date "2019.03.05"]
[Round "1"]
[White "pedro_gines"]
[Black "GM_dmitrij"]
[Result "0-1"]
[WhiteElo "2427"]
[BlackElo "2868"]
[TimeControl "180+2"]
[EndTime "13:03:39 PST"]
[Termination "GM_dmitrij won by resignation"]

1. d4 {[%clk 0:03:00]} 1... Nf6 {[%clk 0:02:48.3]} 2. Nf3 {[%clk 0:03:00.6]}
2... d5 {[%clk 0:02:48.8]} 3. c4 {[%clk 0:02:59.2]} 3... c6 {[%clk 0:02:49.9]}
4. e3 {[%clk 0:02:58.1]} 4... Bg4 {[%clk 0:02:50.2]} 5. Qb3 {[%clk 0:02:49.6]}
5... Qb6 {[%clk 0:02:50]} 6. Nc3 {[%clk 0:02:46.7]} 6... Bxf3 {[%clk 0:02:49.9]}
7. gxf3 {[%clk 0:02:47.1]} 7... e6 {[%clk 0:02:51.3]} 8. Bd2 {[%clk 0:02:41.9]}
8... Nbd7 {[%clk 0:02:52.3]} 9. f4 {[%clk 0:02:41]} 9... Be7 {[%clk 0:02:51.9]}
10. Be2 {[%clk 0:02:40.1]} 10... O-O {[%clk 0:02:49]} 11. O-O-O {[%clk
0:02:26.4]} 11... a5 {[%clk 0:02:44.3]} 12. Qxb6 {[%clk 0:02:25.3]} 12... Nxb6
{[%clk 0:02:44.7]} 13. c5 {[%clk 0:02:26.4]} 13... Nbd7 {[%clk 0:02:45.3]} 14.
Na4 {[%clk 0:02:25.4]} 14... Rfb8 {[%clk 0:02:42.7]} 15. Kb1 {[%clk 0:02:24.2]}
15... b6 {[%clk 0:02:38.8]} 16. cxb6 {[%clk 0:02:24.4]} 16... Ne4 {[%clk
0:02:39.3]} 17. Be1 {[%clk 0:02:22.2]} 17... Nxb6 {[%clk 0:02:40.3]} 18. Nxb6
{[%clk 0:02:22.9]} 18... Rxb6 {[%clk 0:02:42.2]} 19. f3 {[%clk 0:02:24]} 19...
Nd6 {[%clk 0:02:43.3]} 20. Rc1 {[%clk 0:02:21]} 20... Nf5 {[%clk 0:02:44.1]} 21.
Bf2 {[%clk 0:02:17]} 21... Rab8 {[%clk 0:02:44.6]} 22. Rc2 {[%clk 0:02:17.1]}
22... Ba3 {[%clk 0:02:45.7]} 23. b3 {[%clk 0:02:02.4]} 23... a4 {[%clk 0:02:47]}
24. Rc3 {[%clk 0:01:56.8]} 24... axb3 {[%clk 0:02:46.6]} 25. Rxb3 {[%clk
0:01:56.9]} 25... Rxb3+ {[%clk 0:02:47.2]} 26. axb3 {[%clk 0:01:58.8]} 26...
Rxb3+ {[%clk 0:02:48.7]} 27. Ka2 {[%clk 0:01:59.7]} 27... Rb2+ {[%clk
0:02:49.8]} 28. Kxa3 {[%clk 0:01:59.1]} 28... Rxe2 {[%clk 0:02:51.7]} 29. Rb1
{[%clk 0:01:58.6]} 29... h5 {[%clk 0:02:42.5]} 0-1

[Event "*** Titled Tuesday Blitz"]
[Site "Chess.com"]
[Date "2019.03.05"]
[Round "1"]
[White "Tiqr777"]
[Black "XiaoKangZhong"]
[Result "1-0"]
[WhiteElo "2506"]
[BlackElo "2099"]
[TimeControl "180+2"]
[EndTime "13:04:40 PST"]
[Termination "Tiqr777 won by checkmate"]

1. g3 {[%clk 0:03:01.9]} 1... c6 {[%clk 0:03:00.3]} 2. Bg2 {[%clk 0:03:02.9]}
2... d5 {[%clk 0:03:01.7]} 3. d3 {[%clk 0:03:04]} 3... Nf6 {[%clk 0:03:02.6]} 4.
Nc3 {[%clk 0:03:04.6]} 4... e5 {[%clk 0:03:03.7]} 5. e4 {[%clk 0:03:05.7]} 5...
d4 {[%clk 0:03:04.3]} 6. Nce2 {[%clk 0:03:06.7]} 6... Bg4 {[%clk 0:03:03.8]} 7.
h3 {[%clk 0:03:07.5]} 7... Be6 {[%clk 0:03:04.5]} 8. f4 {[%clk 0:03:08.1]} 8...
Bd6 {[%clk 0:02:59.8]} 9. Nf3 {[%clk 0:03:08.1]} 9... exf4 {[%clk 0:02:57.8]}
10. gxf4 {[%clk 0:03:08.4]} 10... Nh5 {[%clk 0:02:53.5]} 11. O-O {[%clk
0:02:56.7]} 11... c5 {[%clk 0:02:52.3]} 12. Ng5 {[%clk 0:02:44.4]} 12... Qc7
{[%clk 0:02:51.6]} 13. Nxe6 {[%clk 0:02:44.7]} 13... fxe6 {[%clk 0:02:52.8]} 14.
e5 {[%clk 0:02:42.7]} 14... Be7 {[%clk 0:02:52.8]} 15. Nxd4 {[%clk 0:02:42.9]}
15... Nxf4 {[%clk 0:02:43.3]} 16. Nb5 {[%clk 0:02:33.9]} 16... Qb6 {[%clk
0:02:41.9]} 17. Bxf4 {[%clk 0:02:24.1]} 17... Qxb5 {[%clk 0:02:39.3]} 18. Qg4
{[%clk 0:02:25.5]} 18... Nc6 {[%clk 0:02:28.2]} 19. Qxe6 {[%clk 0:02:12.3]}
19... Nd4 {[%clk 0:02:18.6]} 20. Qg4 {[%clk 0:02:12.3]} 20... h5 {[%clk
0:02:12.1]} 21. Qg6+ {[%clk 0:02:12.8]} 21... Kd7 {[%clk 0:02:11.4]} 22. e6+
{[%clk 0:02:07.3]} 22... Nxe6 {[%clk 0:02:10.5]} 23. Rae1 {[%clk 0:01:58.9]}
23... Nxf4 {[%clk 0:02:02.7]} 24. Rxf4 {[%clk 0:02:00.1]} 24... Raf8 {[%clk
0:02:02.8]} 25. Qe6+ {[%clk 0:01:59.7]} 25... Kc7 {[%clk 0:02:01.4]} 26. Qxe7+
{[%clk 0:02:00.5]} 26... Kb8 {[%clk 0:02:01.6]} 27. Rxf8+ {[%clk 0:02:00.9]}
27... Rxf8 {[%clk 0:02:02.9]} 28. Qxf8+ {[%clk 0:02:02.1]} 28... Kc7 {[%clk
0:02:04.6]} 29. Re7+ {[%clk 0:02:02.4]} 29... Kb6 {[%clk 0:02:06]} 30. Rxb7+
{[%clk 0:02:03.3]} 30... Ka5 {[%clk 0:02:05.8]} 31. Rxb5+ {[%clk 0:02:04.4]}
31... Kxb5 {[%clk 0:02:07.2]} 32. Qb8+ {[%clk 0:02:06]} 32... Ka6 {[%clk
0:02:07.6]} 33. c4 {[%clk 0:02:03.9]} 33... Ka5 {[%clk 0:02:07.4]} 34. Qb5#
{[%clk 0:02:05.1]} 1-0

[Event "*** Titled Tuesday Blitz"]
[Site "Chess.com"]
[Date "2019.03.05"]
[Round "1"]
[White "Salem-AR"]
[Black "Al_Shima"]
[Result "1-0"]
[WhiteElo "2941"]
[BlackElo "2442"]
[TimeControl "180+2"]
[EndTime "13:04:44 PST"]
[Termination "Salem-AR won by resignation"]

1. d4 {[%clk 0:03:01.5]} 1... Nf6 {[%clk 0:03:00.6]} 2. c4 {[%clk 0:03:02.2]}
2... Nc6 {[%clk 0:03:00.8]} 3. Nf3 {[%clk 0:03:03.1]} 3... e6 {[%clk 0:03:01.1]}
4. a3 {[%clk 0:03:03.6]} 4... d5 {[%clk 0:02:58.3]} 5. Nc3 {[%clk 0:03:04.3]}
5... Be7 {[%clk 0:02:58.6]} 6. Bg5 {[%clk 0:02:57.9]} 6... a6 {[%clk 0:02:58.6]}
7. e3 {[%clk 0:02:58.9]} 7... O-O {[%clk 0:02:59.1]} 8. Qc2 {[%clk 0:02:59.7]}
8... h6 {[%clk 0:02:48]} 9. Bh4 {[%clk 0:02:59.3]} 9... Bd7 {[%clk 0:02:47]} 10.
Rd1 {[%clk 0:02:58.5]} 10... Na7 {[%clk 0:02:45.1]} 11. Bxf6 {[%clk 0:02:58.6]}
11... Bxf6 {[%clk 0:02:44.1]} 12. cxd5 {[%clk 0:03:00.1]} 12... Re8 {[%clk
0:02:40.7]} 13. Bc4 {[%clk 0:02:56.1]} 13... e5 {[%clk 0:02:31.3]} 14. dxe5
{[%clk 0:02:53.2]} 14... Bxe5 {[%clk 0:02:32.3]} 15. Nxe5 {[%clk 0:02:55.1]}
15... Rxe5 {[%clk 0:02:33.1]} 16. O-O {[%clk 0:02:56.7]} 16... Rh5 {[%clk
0:02:28.2]} 17. Be2 {[%clk 0:02:53.2]} 17... Rg5 {[%clk 0:02:24.6]} 18. f4
{[%clk 0:02:51.9]} 18... Rg6 {[%clk 0:02:25]} 19. Bd3 {[%clk 0:02:51.7]} 19...
Rd6 {[%clk 0:02:20.2]} 20. e4 {[%clk 0:02:52.1]} 20... Bg4 {[%clk 0:02:13.1]}
21. Rde1 {[%clk 0:02:49.3]} 21... c6 {[%clk 0:01:59]} 22. e5 {[%clk 0:02:47.1]}
22... Rxd5 {[%clk 0:01:59.8]} 23. Nxd5 {[%clk 0:02:48.2]} 23... Qxd5 {[%clk
0:02:01.4]} 24. h3 {[%clk 0:02:43.6]} 24... Be6 {[%clk 0:02:00.9]} 25. Rd1
{[%clk 0:02:42.9]} 25... Qd4+ {[%clk 0:01:54.3]} 26. Kh1 {[%clk 0:02:41.9]}
26... Qb6 {[%clk 0:01:55.1]} 27. Bc4 {[%clk 0:02:40.2]} 27... Nb5 {[%clk
0:01:49.2]} 28. f5 {[%clk 0:02:40.2]} 28... Bxc4 {[%clk 0:01:31.7]} 29. Qxc4
{[%clk 0:02:42.1]} 29... Qc7 {[%clk 0:01:30.7]} 30. e6 {[%clk 0:02:41.8]} 30...
fxe6 {[%clk 0:01:30.6]} 31. fxe6 {[%clk 0:02:40]} 31... Nd6 {[%clk 0:01:30.6]}
32. Qf4 {[%clk 0:02:39.3]} 32... Rd8 {[%clk 0:01:27.7]} 33. Rxd6 {[%clk
0:02:32]} 33... Qxd6 {[%clk 0:01:22.6]} 34. Qxd6 {[%clk 0:02:31.1]} 1-0

[Event "*** Titled Tuesday Blitz"]
[Site "Chess.com"]
[Date "2019.03.05"]
[Round "1"]
[White "LPSupi"]
[Black "riconaipe"]
[Result "1-0"]
[WhiteElo "2861"]
[BlackElo "2427"]
[TimeControl "180+2"]
[EndTime "13:04:45 PST"]
[Termination "LPSupi won by resignation"]

1. c4 {[%clk 0:03:00.7]} 1... e6 {[%clk 0:02:59.3]} 2. Nf3 {[%clk 0:03:01.3]}
2... g6 {[%clk 0:02:59.4]} 3. d4 {[%clk 0:02:54.3]} 3... Bg7 {[%clk 0:03:00.4]}
4. Nc3 {[%clk 0:02:54.1]} 4... Ne7 {[%clk 0:03:00.8]} 5. e4 {[%clk 0:02:51]}
5... O-O {[%clk 0:03:00.7]} 6. h4 {[%clk 0:02:50.6]} 6... d5 {[%clk 0:03:01.4]}
7. h5 {[%clk 0:02:50.4]} 7... c5 {[%clk 0:02:57.8]} 8. hxg6 {[%clk 0:02:48.2]}
8... fxg6 {[%clk 0:02:50.6]} 9. cxd5 {[%clk 0:02:43.6]} 9... cxd4 {[%clk
0:02:42.1]} 10. Nxd4 {[%clk 0:02:39.5]} 10... exd5 {[%clk 0:02:43]} 11. exd5
{[%clk 0:02:38.8]} 11... Qb6 {[%clk 0:02:22.7]} 12. Bc4 {[%clk 0:01:47.4]} 12...
Kh8 {[%clk 0:02:00.8]} 13. Be3 {[%clk 0:01:38.6]} 13... Qxb2 {[%clk 0:01:57.7]}
14. Rc1 {[%clk 0:01:36.2]} 14... Bg4 {[%clk 0:01:48]} 15. Qxg4 {[%clk 0:01:32]}
15... Nf5 {[%clk 0:01:44.9]} 16. Nxf5 {[%clk 0:01:28.5]} 16... Bxc3+ {[%clk
0:01:43]} 17. Kf1 {[%clk 0:01:29.2]} 17... Rxf5 {[%clk 0:01:37.4]} 18. Rxc3
{[%clk 0:01:29.5]} 18... Qxc3 {[%clk 0:01:32.6]} 19. Bd4+ {[%clk 0:01:30.3]} 1-0

[Event "*** Titled Tuesday Blitz"]
[Site "Chess.com"]
[Date "2019.03.05"]
[Round "1"]
[White "LastHeroJr"]
[Black "Lennis93"]
[Result "0-1"]
[WhiteElo "2537"]
[BlackElo "2207"]
[TimeControl "180+2"]
[EndTime "13:04:57 PST"]
[Termination "Lennis93 won by resignation"]

1. e4 {[%clk 0:02:29.7]} 1... c6 {[%clk 0:03:01.9]} 2. d4 {[%clk 0:02:29.5]}
2... d5 {[%clk 0:03:02.6]} 3. e5 {[%clk 0:02:31.2]} 3... Bf5 {[%clk 0:03:02.8]}
4. Nf3 {[%clk 0:02:32.6]} 4... e6 {[%clk 0:03:03.8]} 5. Be2 {[%clk 0:02:34.2]}
5... Nd7 {[%clk 0:03:05.1]} 6. O-O {[%clk 0:02:35.6]} 6... Ne7 {[%clk
0:03:06.4]} 7. a4 {[%clk 0:02:37.2]} 7... a5 {[%clk 0:03:03]} 8. c4 {[%clk
0:02:35.5]} 8... dxc4 {[%clk 0:03:02.1]} 9. Na3 {[%clk 0:02:27.8]} 9... Nb6
{[%clk 0:03:02.2]} 10. Bxc4 {[%clk 0:02:20.6]} 10... Ned5 {[%clk 0:03:02.6]} 11.
Be2 {[%clk 0:02:20.2]} 11... Bb4 {[%clk 0:03:02.6]} 12. Bd2 {[%clk 0:02:20]}
12... O-O {[%clk 0:03:03]} 13. Nc2 {[%clk 0:02:19.3]} 13... Be7 {[%clk
0:02:59.7]} 14. b3 {[%clk 0:02:15.5]} 14... h6 {[%clk 0:03:00]} 15. Rc1 {[%clk
0:02:16.3]} 15... Bh7 {[%clk 0:02:56.1]} 16. Qe1 {[%clk 0:02:16.5]} 16... Nd7
{[%clk 0:02:55.6]} 17. Bc4 {[%clk 0:02:12.6]} 17... b6 {[%clk 0:02:47.9]} 18.
Ne3 {[%clk 0:02:10.2]} 18... Qb8 {[%clk 0:02:43.1]} 19. Nxd5 {[%clk 0:02:09.9]}
19... cxd5 {[%clk 0:02:37.1]} 20. Bb5 {[%clk 0:02:11.1]} 20... Ra7 {[%clk
0:02:37.4]} 21. Rc6 {[%clk 0:02:09.7]} 21... Rc8 {[%clk 0:02:36.2]} 22. Qe2
{[%clk 0:02:04.5]} 22... Rxc6 {[%clk 0:02:35.4]} 23. Bxc6 {[%clk 0:02:06.4]}
23... Rc7 {[%clk 0:02:35.8]} 24. Bb5 {[%clk 0:02:06.4]} 24... Qc8 {[%clk
0:02:36]} 25. h3 {[%clk 0:02:05.3]} 25... Nb8 {[%clk 0:02:35.6]} 26. Qe3 {[%clk
0:02:00.6]} 26... Ba3 {[%clk 0:02:34]} 27. g4 {[%clk 0:01:59.3]} 27... Nc6
{[%clk 0:02:32.2]} 28. h4 {[%clk 0:01:55.3]} 28... Ne7 {[%clk 0:02:31.3]} 29. h5
{[%clk 0:01:55.2]} 29... Bb4 {[%clk 0:02:30.5]} 30. Bxb4 {[%clk 0:01:54.1]}
30... axb4 {[%clk 0:02:30.6]} 31. Nd2 {[%clk 0:01:52.8]} 31... Rc3 {[%clk
0:02:30.7]} 32. Qe2 {[%clk 0:01:53.8]} 32... Nc6 {[%clk 0:02:28.8]} 33. Bxc6
{[%clk 0:01:52.7]} 33... Bd3 {[%clk 0:02:24.9]} 34. Qd1 {[%clk 0:01:48.5]} 34...
Bxf1 {[%clk 0:02:25.2]} 35. Bxd5 {[%clk 0:01:38.4]} 35... Rc1 {[%clk 0:02:24.3]}
0-1

[Event "*** Titled Tuesday Blitz"]
[Site "Chess.com"]
[Date "2019.03.05"]
[Round "1"]
[White "Rashad_Zeynalli"]
[Black "Durarbayli"]
[Result "0-1"]
[WhiteElo "2400"]
[BlackElo "2777"]
[TimeControl "180+2"]
[EndTime "13:05:18 PST"]
[Termination "Durarbayli won by resignation"]

1. e4 {[%clk 0:03:01.6]} 1... e5 {[%clk 0:02:56.2]} 2. Nf3 {[%clk 0:03:02.3]}
2... Nc6 {[%clk 0:02:57.2]} 3. Bb5 {[%clk 0:03:03.8]} 3... a6 {[%clk 0:02:58.3]}
4. Ba4 {[%clk 0:03:04.5]} 4... Nge7 {[%clk 0:02:59.6]} 5. c3 {[%clk 0:03:03.4]}
5... Ng6 {[%clk 0:02:59.2]} 6. d4 {[%clk 0:03:03.5]} 6... Be7 {[%clk 0:02:43.6]}
7. O-O {[%clk 0:03:00.6]} 7... b5 {[%clk 0:02:36.7]} 8. Bb3 {[%clk 0:03:00.1]}
8... O-O {[%clk 0:02:28.1]} 9. a4 {[%clk 0:03:00.3]} 9... b4 {[%clk 0:02:16]}
10. Bd5 {[%clk 0:02:55.9]} 10... bxc3 {[%clk 0:01:59]} 11. Nxc3 {[%clk
0:02:54.5]} 11... Bf6 {[%clk 0:01:33.6]} 12. Bxc6 {[%clk 0:02:49.9]} 12... dxc6
{[%clk 0:01:34.8]} 13. Be3 {[%clk 0:02:49]} 13... Bg4 {[%clk 0:01:26.5]} 14. d5
{[%clk 0:02:49.5]} 14... Rb8 {[%clk 0:01:24.8]} 15. Qc2 {[%clk 0:02:47.8]} 15...
Bxf3 {[%clk 0:01:25.1]} 16. gxf3 {[%clk 0:02:48.6]} 16... Bg5 {[%clk 0:01:19.4]}
17. dxc6 {[%clk 0:02:44]} 17... Bf4 {[%clk 0:00:52.4]} 18. Ne2 {[%clk
0:02:28.4]} 18... Qg5+ {[%clk 0:00:51.9]} 19. Kh1 {[%clk 0:02:24]} 19... Qh5
{[%clk 0:00:49]} 20. Bxf4 {[%clk 0:01:36.3]} 20... Qxf3+ {[%clk 0:00:47.8]} 21.
Kg1 {[%clk 0:01:37.7]} 21... Nh4 {[%clk 0:00:45.6]} 0-1

[Event "*** Titled Tuesday Blitz"]
[Site "Chess.com"]
[Date "2019.03.05"]
[Round "1"]
[White "ManuDavid2910"]
[Black "ajkom197"]
[Result "1-0"]
[WhiteElo "2762"]
[BlackElo "2396"]
[TimeControl "180+2"]
[EndTime "13:05:23 PST"]
[Termination "ManuDavid2910 won by resignation"]

1. e4 {[%clk 0:03:01.9]} 1... c6 {[%clk 0:02:57]} 2. Nf3 {[%clk 0:03:02.7]} 2...
d5 {[%clk 0:02:51.2]} 3. Nc3 {[%clk 0:03:02]} 3... dxe4 {[%clk 0:02:51.5]} 4.
Nxe4 {[%clk 0:03:03.9]} 4... Nf6 {[%clk 0:02:49.9]} 5. Ng3 {[%clk 0:03:04.7]}
5... h5 {[%clk 0:02:49.6]} 6. h4 {[%clk 0:03:04.6]} 6... Bg4 {[%clk 0:02:49.6]}
7. Be2 {[%clk 0:03:05.6]} 7... e6 {[%clk 0:02:40.5]} 8. Ne5 {[%clk 0:03:06.1]}
8... Bxe2 {[%clk 0:02:34.9]} 9. Qxe2 {[%clk 0:03:08]} 9... Nbd7 {[%clk
0:02:33.4]} 10. d4 {[%clk 0:03:00.3]} 10... Nxe5 {[%clk 0:02:33.8]} 11. dxe5
{[%clk 0:03:00.5]} 11... Nd5 {[%clk 0:02:31]} 12. Ne4 {[%clk 0:03:00.7]} 12...
Qc7 {[%clk 0:02:27]} 13. c4 {[%clk 0:02:51.4]} 13... Nb6 {[%clk 0:02:22.9]} 14.
Bf4 {[%clk 0:02:50.6]} 14... O-O-O {[%clk 0:02:16]} 15. O-O {[%clk 0:02:31.3]}
15... Be7 {[%clk 0:02:15]} 16. Bg3 {[%clk 0:02:31.3]} 16... Rd4 {[%clk
0:02:11.8]} 17. b3 {[%clk 0:02:26.8]} 17... g6 {[%clk 0:02:08.8]} 18. Rad1
{[%clk 0:02:22.4]} 18... Rhd8 {[%clk 0:02:09.2]} 19. Nd6+ {[%clk 0:02:22.9]}
19... R4xd6 {[%clk 0:01:50.6]} 20. exd6 {[%clk 0:02:21.1]} 20... Bxd6 {[%clk
0:01:50.6]} 21. Rxd6 {[%clk 0:02:21.3]} 21... Rd7 {[%clk 0:01:49.5]} 22. Rxe6
{[%clk 0:02:18.6]} 1-0

[Event "*** Titled Tuesday Blitz"]
[Site "Chess.com"]
[Date "2019.03.05"]
[Round "1"]
[White "alpasya2009"]
[Black "PawnEatingZombie"]
[Result "1-0"]
[WhiteElo "2529"]
[BlackElo "2143"]
[TimeControl "180+2"]
[EndTime "13:05:26 PST"]
[Termination "alpasya2009 won by resignation"]

1. d4 {[%clk 0:03:01.9]} 1... d5 {[%clk 0:02:54.3]} 2. c4 {[%clk 0:02:56.3]}
2... e6 {[%clk 0:02:53.1]} 3. Nf3 {[%clk 0:02:57.6]} 3... dxc4 {[%clk
0:02:52.3]} 4. g3 {[%clk 0:02:59.5]} 4... c5 {[%clk 0:02:51.1]} 5. Bg2 {[%clk
0:02:55.9]} 5... Nc6 {[%clk 0:02:50.1]} 6. O-O {[%clk 0:02:54.5]} 6... cxd4
{[%clk 0:02:48.8]} 7. Qa4 {[%clk 0:02:53]} 7... Bd7 {[%clk 0:02:42.6]} 8. Qxc4
{[%clk 0:02:51.4]} 8... e5 {[%clk 0:02:30.5]} 9. e3 {[%clk 0:02:50.8]} 9... Rc8
{[%clk 0:02:27.4]} 10. Qe2 {[%clk 0:02:51.3]} 10... dxe3 {[%clk 0:02:16.1]} 11.
Bxe3 {[%clk 0:02:50.1]} 11... Nf6 {[%clk 0:02:06]} 12. Nxe5 {[%clk 0:02:42]}
12... Nxe5 {[%clk 0:02:05.6]} 13. Bd4 {[%clk 0:02:42]} 13... Be7 {[%clk
0:01:53.9]} 14. Qxe5 {[%clk 0:02:40.8]} 14... O-O {[%clk 0:01:50.1]} 15. Nc3
{[%clk 0:02:42]} 15... Re8 {[%clk 0:01:38.3]} 16. Qf4 {[%clk 0:02:39.8]} 16...
Qa5 {[%clk 0:01:19.7]} 17. Rfe1 {[%clk 0:02:35.5]} 17... Qf5 {[%clk 0:01:12.3]}
18. Qxf5 {[%clk 0:02:32.3]} 18... Bxf5 {[%clk 0:01:13.1]} 19. Bxb7 {[%clk
0:02:32.7]} 19... Rc7 {[%clk 0:01:06.2]} 20. Bf3 {[%clk 0:02:30.8]} 20... Rd8
{[%clk 0:00:57]} 21. Rad1 {[%clk 0:02:19.8]} 21... Kf8 {[%clk 0:00:50.8]} 22.
Nb5 {[%clk 0:02:18.2]} 22... Rc2 {[%clk 0:00:49.4]} 23. Nxa7 {[%clk 0:02:16.4]}
23... Bg4 {[%clk 0:00:21]} 24. Bxf6 {[%clk 0:02:13.4]} 1-0